[Event "10th Iberoamericano-ch 2024"]
[Site "Linares"]
[Date "2024.09.25"]
[Round "1.10"]
[White "Galvan Cipriani, Viviana"]
[Black "Fernandez Guillen, Ernesto J."]
[Result "0-1"]
[ECO "A26"]
[WhiteElo "2141"]
[BlackElo "2463"]
[Annotator "TA"]
[PlyCount "148"]
[EventDate "2024.09.25"]
[EventType "swiss"]
[EventCountry "ESP"]
[SourceTitle "playchess.com"]
[Source "ChessBase"]
[SourceQuality "1"]
[TimeControl "5400+30"]

{[%evp 12,148,10,0,21,15,29,27,38,8,29,5,66,61,72,54,72,68,57,26,30,0,6,6,4,7,36,50,45,51,52,36,30,7,21,0,0,0,0,0,-6,-29,-34,-108,27,31,31,26,31,26,45,12,19,0,0,0,31,23,23,31,65,17,62,27,71,0,31,0,51,31,62,0,34,0,64,0,11,33,33,33,33,0,48,33,72,0,28,-11,0,0,0,0,0,0,87,82,82,19,82,-12,0,-17,0,0,0,0,0,0,0,0,0,0,0,0,0,-22,0,-22,-22,-39,-22,-603,-580,-616,-632,-607,-549,-910,-917,-1179,-1156,-29984,-29985,-29985,-2148,-29981,-29982,-29996,-29997]} 1. c4 {[%emt 0:00:04]} e5 {[%emt 0:07:04]} 2. Nc3 {[%emt 0:00:34]} Nc6 {[%emt 0:02:36]} 3. g3 {[%emt 0:01:35]} g6 {[%emt 0:01:20]} 4. Bg2 {[%emt 0:00:44]} Bg7 {[%emt 0:00:07]} 5. d3 {[%emt 0:01:33]} d6 {[%emt 0:01:22]} 6. e4 {[%emt 0:02:50]} h5 {[%emt 0:01:34]} 7. h4 {[%emt 0:06:51]} Bg4 {[%emt 0:04:56]} 8. f3 {[%emt 0:02:37]} Be6 {[%emt 0:01:19]} 9. Nge2 {[%emt 0:00:20]} Qd7 {[%emt 0:03:14] White has an edge.} 10. Be3 {[%emt 0:04:11]} Bh6 {[%emt 0:07:05]} 11. Qd2 {[%emt 0:03:43]} Nd4 {[%emt 0:11:54]} 12. Bxh6 $1 $14 {[%emt 0:21:02]} Nxh6 {[%emt 0:11:22]} 13. Nd5 {[%emt 0:07:41]} O-O-O {[%emt 0:08:04]} 14. Nxd4 {[%emt 0:03:25]} exd4 {[%emt 0:00:20]} 15. Qa5 {[%emt 0:08:54]} Kb8 {[%emt 0:04:08]} 16. Nf4 {[%emt 0:03:37]} (16. Nf6 $5 Qe7 17. Qg5 $14) 16... f6 {[%emt 0:08:09]} 17. O-O-O {[%emt 0:07:15]} ({Of course not} 17. Nxg6 Rhg8 18. Nf4 (18. Qxh5 Qg7 $17) 18... Rxg3) 17... Rdg8 {[%emt 0:07:26]} 18. Rde1 {[%emt 0:06:43]} g5 {[%emt 0:05:36]} 19. hxg5 {[%emt 0:02:09]} Rxg5 {[%emt 0:03:17]} 20. Qd2 {[%emt 0:00:14][%cal Og3g4]} Bf7 {[%emt 0:03:48]} 21. Ne2 {[%emt 0:02:01][%cal Od2f4]} c5 {[%emt 0:05:18]} 22. Qf4 {[%emt 0:06:23]} Qe7 {[%emt 0:00:23]} 23. b3 {[%emt 0:02:05]} Be8 {[%emt 0:00:36]} 24. Qd2 {[%emt 0:01:55]} Rgg8 {[%emt 0:00:28]} 25. Bh3 {[%emt 0:00:47] Wards off f5} Nf7 {[%emt 0:00:13]} 26. f4 {[%emt 0:02:04][%cal Bf3f4,Bf4f5][%mdl 32]} Nh6 {[%emt 0:00:45][%cal Of6f5]} 27. Ref1 {[%emt 0:01:24]} (27. b4 $15) 27... Ng4 {[%emt 0:00:42]} (27... f5 $1 $17 {...Bc6 would now be deadly.} 28. exf5 Qf6 (28... Bc6 $2 29. Rh2 $19)) 28. Bxg4 $11 {[%emt 0:00:13]} Rxg4 {[%emt 0:00:03]} 29. f5 $1 {[%emt 0:00:29]} Rhg8 {[%emt 0:00:37]} 30. Rh2 {[%emt 0:00:21]} b5 {[%emt 0:00:40]} 31. Rf4 {[%emt 0:01:41]} R4g5 {[%emt 0:00:23]} 32. Kd1 {[%emt 0:00:32][%cal Bc1d1,Bd1e1,Be1f2][%mdl 32]} Qb7 {[%emt 0:00:56]} 33. Ke1 {[%emt 0:00:31]} Bc6 {[%emt 0:00:40]} 34. Rfh4 {[%emt 0:00:24]} Be8 {[%emt 0:00:25]} 35. Kf2 {[%emt 0:00:09]} Qc7 {[%emt 0:00:13]} 36. Qf4 {[%emt 0:00:40]} (36. R2h3 $14 {is superior.}) 36... Qe7 {[%emt 0:00:34]} 37. R2h3 {[%emt 0:00:39]} Qe5 {[%emt 0:00:48]} 38. Rh2 {[%emt 0:00:31]} (38. Qf3 $16) 38... Kc7 {[%emt 0:00:16]} 39. R2h3 {[%emt 0:00:20]} Kb6 {[%emt 0:00:29]} ({Better is} 39... Kb8 $11) 40. Qd2 {[%emt 0:00:45]} Bf7 {[%emt 0:00:30]} 41. Qf4 {[%emt 0:00:27]} (41. a4 $14) 41... Re8 {[%emt 0:00:43]} 42. Qd2 {[%emt 0:00:31]} (42. Qxe5 {simplifies} fxe5 43. g4 Rxg4 44. Rxg4 hxg4 45. Rh7) 42... Reg8 $1 {[%emt 0:00:26]} 43. Qf4 {[%emt 0:00:11]} ({White should play} 43. a4 $14) 43... a5 {[%emt 0:00:34]} 44. Qd2 {[%emt 0:00:23]} Qe8 {[%emt 0:00:32]} 45. Rh1 {[%emt 0:00:48]} Qe5 {[%emt 0:00:10][%cal Rg5g3]} 46. R1h3 {[%emt 0:00:17]} Be8 {[%emt 0:00:51]} (46... Qe8 $11) 47. Nf4 $14 {[%emt 0:00:26]} Bf7 {[%emt 0:00:13]} 48. Ne2 {[%emt 0:00:56]} (48. Nxh5 $2 {too greedy.} Bxh5 49. Rf4 a4 $19) ({White should try} 48. a4 $16) 48... a4 {[%emt 0:00:15]} 49. Qd1 {[%emt 0:00:27]} Re8 {[%emt 0:00:40]} 50. Qd2 {[%emt 0:00:30]} axb3 {[%emt 0:00:32]} 51. axb3 {[%emt 0:00:05]} Ra8 {[%emt 0:00:07]} 52. Rh1 {[%emt 0:00:25][%cal Bh3h1,Bh1b1,Bb1b2][%mdl 32]} Qe7 {[%emt 0:00:30] [#]} (52... Rgg8 $11 {keeps the balance.}) 53. Rb1 $1 $16 {[%emt 0:01:05]} b4 {[%emt 0:00:48] [#]} 54. Rhh1 $1 {[%emt 0:00:29]} Ra3 {[%emt 0:00:46]} (54... Kb7 $1 $11 {remains equal.}) 55. Nf4 {[%emt 0:00:31]} (55. Nxd4 $16 {[%cal Oh1g1]} Qe5 56. Ne2) 55... Qa7 $11 {[%emt 0:00:26]} 56. Kf3 {[%emt 0:00:30]} Ra2 {[%emt 0:00:28]} 57. Rb2 {[%emt 0:00:15]} Ra1 {[%emt 0:00:22] Chess con chili.} 58. Rhb1 {[%emt 0:00:41]} Rg8 {[%emt 0:00:31]} 59. Qe1 {[%emt 0:00:32]} Ra3 {[%emt 0:00:07]} 60. Qh1 {[%emt 0:00:25]} Rg5 {[%emt 0:00:30]} 61. Nh3 {[%emt 0:00:35]} Rg8 {[%emt 0:00:40]} 62. Nf4 {[%emt 0:00:03]} Qa8 {[%emt 0:00:43]} 63. Qh4 {[%emt 0:00:58]} Rg5 {[%emt 0:00:36]} 64. Kf2 {[%emt 0:00:25]} Qh8 {[%emt 0:00:19]} 65. Rh1 {[%emt 0:00:26][%cal Og3g4]} Qg7 {[%emt 0:00:02] Strongly threatening ...Rg4.} 66. Ne2 $2 {[%emt 0:00:42][%mdl 8192] Loses the game.} (66. Qh3 $11) 66... Rg4 $19 {[%emt 0:00:13]} 67. Qh2 {[%emt 0:00:19]} Qg5 {[%emt 0:00:02]} 68. Rd1 {[%emt 0:00:37]} Kc7 {[%emt 0:00:32] ...h4 is the strong threat.} 69. Kf1 {[%emt 0:00:28]} h4 {[%emt 0:00:26]} 70. Qh3 {[%emt 0:00:33]} hxg3 {[%emt 0:01:56] White must now prevent ...Rh4.} 71. Qh7 {[%emt 0:00:16]} g2+ {[%emt 0:00:26]} 72. Kg1 {[%emt 0:00:06]} Qe3+ {[%emt 0:00:47]} (72... Qh5 $2 73. Qxh5 Bxh5 74. Rdb1 $19) 73. Kh2 {[%emt 0:00:07] [#]} Qf2 $1 {[%emt 0:00:17]} 74. Qxf7+ {[%emt 0:00:40]} (74. Rg1 Rh4+) 74... Kb6 {[%emt 0:00:08] Weighted Error Value: White=0.19 (very precise) /Black=0.20 (precise) .  Loses game:     	White=1     	---        Mistake:       	White=7     	Black=6      Inaccurate:     	White=8     	Black=10     OK:         	White=18    	Black=8      Best:        	White=1     	Black=2      Strong:       	White=4     	Black=1} 0-1

[Event "10th Iberoamericano-ch 2024"]
[Site "Linares"]
[Date "2024.09.25"]
[Round "1.11"]
[White "Flores Quillas, Diego Saul Rodri"]
[Black "Diaz Mino, Daniel"]
[Result "1-0"]
[ECO "B55"]
[WhiteElo "2451"]
[BlackElo "2130"]
[Annotator "RC"]
[PlyCount "65"]
[EventDate "2024.09.25"]
[EventType "swiss"]
[EventCountry "ESP"]
[SourceTitle "playchess.com"]
[Source "ChessBase"]
[SourceQuality "1"]
[TimeControl "5400+30"]

1. e4 {[%emt 0:07:40]} c5 {[%emt 0:00:03]} 2. Nf3 {[%emt 0:00:09]} d6 {[%emt 0:00:06]} 3. d4 {[%emt 0:00:02]} cxd4 {[%emt 0:00:07]} 4. Nxd4 {[%emt 0:00:02]} Nf6 {[%emt 0:00:08]} 5. f3 {[%emt 0:00:02]} e5 {[%emt 0:00:06]} 6. Bb5+ {[%emt 0:00:18]} Nbd7 {[%emt 0:01:10]} 7. Nb3 {[%emt 0:00:05]} a6 {[%emt 0:05:40]} 8. Be2 {[%emt 0:00:05]} Nc5 {[%emt 0:16:59]} 9. c4 {[%emt 0:04:57]} Be6 {[%emt 0:04:12]} 10. Be3 {[%emt 0:00:17]} Be7 {[%emt 0:25:43]} 11. Nc3 {[%emt 0:01:00]} O-O {[%emt 0:00:22]} 12. Qd2 {[%emt 0:04:03]} Rc8 {[%emt 0:08:12]} 13. O-O {[%emt 0:03:51]} Nfd7 {[%emt 0:07:05]} 14. Rab1 {[%emt 0:11:31]} Nb6 {[%emt 0:09:07]} 15. Na5 {[%emt 0:01:04]} Rb8 {[%emt 0:08:19]} 16. b4 {[%emt 0:02:41]} Ncd7 {[%emt 0:00:33]} 17. Rbc1 {[%emt 0:03:06]} f5 {[%emt 0:01:10]} 18. exf5 {[%emt 0:02:03]} Bxf5 {[%emt 0:00:16]} 19. Rfd1 {[%emt 0:02:01]} Nf6 {[%emt 0:00:45]} 20. c5 {[%emt 0:01:29]} dxc5 {[%emt 0:00:58]} 21. Qxd8 {[%emt 0:00:27]} Rfxd8 {[%emt 0:00:39]} 22. bxc5 {[%emt 0:00:13]} Rxd1+ {[%emt 0:06:37]} 23. Rxd1 {[%emt 0:04:21]} Na8 {[%emt 0:00:17]} 24. Bc4+ {[%emt 0:01:51]} Kf8 {[%emt 0:00:50]} 25. g4 {[%emt 0:02:06]} Bg6 {[%emt 0:00:14]} 26. g5 {[%emt 0:00:42]} Ne8 {[%emt 0:00:10]} 27. Nd5 {[%emt 0:00:39]} Nec7 {[%emt 0:03:23]} 28. Nxc7 {[%emt 0:05:28]} Nxc7 {[%emt 0:00:02]} 29. Rd7 {[%emt 0:00:05]} Bd8 {[%emt 0:00:53]} 30. c6 {[%emt 0:00:11]} bxc6 {[%emt 0:00:51]} 31. Nxc6 {[%emt 0:00:24]} Rb1+ {[%emt 0:00:16]} 32. Kg2 {[%emt 0:00:01]} Rb2+ {[%emt 0:00:36]} 33. Kg3 {[%emt 0:00:05]} 1-0

[Event "10th Iberoamericano-ch 2024"]
[Site "Linares"]
[Date "2024.09.25"]
[Round "1.12"]
[White "Donate Moreno, Silvia"]
[Black "Lopez Martinez, Josep Manuel"]
[Result "0-1"]
[ECO "C01"]
[WhiteElo "2126"]
[BlackElo "2448"]
[Annotator "TA"]
[PlyCount "104"]
[EventDate "2024.09.25"]
[EventType "swiss"]
[EventCountry "ESP"]
[SourceTitle "playchess.com"]
[Source "ChessBase"]
[SourceQuality "1"]
[TimeControl "5400+30"]

{[%evp 13,104,13,0,12,0,-26,-4,-17,1,7,0,6,8,-2,0,0,16,18,20,0,0,0,0,0,0,0,0,7,2,13,14,14,10,6,53,35,53,43,49,62,57,41,50,50,57,51,52,0,0,0,0,0,0,0,0,0,0,-144,-145,-141,-134,-158,-165,-228,-228,-237,-230,-237,-237,-237,-237,-412,-408,-391,-379,-350,-327,-1167,-614,-1245,-1148,-986,-918,-1177,-1010,-2347,-2347,-2005,-1769,-1481,-1405,-886,-768]} 1. e4 {[%emt 0:00:03]} e6 {[%emt 0:06:59]} 2. d4 {[%emt 0:00:31]} d5 {[%emt 0:00:14]} 3. exd5 {[%emt 0:01:36]} exd5 {[%emt 0:00:53]} 4. Bd3 {[%emt 0:00:14]} Nc6 {[%emt 0:01:30]} 5. c3 {[%emt 0:00:09]} Bd6 {[%emt 0:00:16]} 6. Qf3 {[%emt 0:00:38]} Be6 {[%emt 0:07:05]} 7. Ne2 {[%emt 0:03:10]} Qd7 {[%emt 0:01:56]} 8. h3 {[%emt 0:08:59]} O-O-O {[%emt 0:04:16]} 9. Be3 {[%emt 0:05:23]} Nge7 {[%emt 0:06:05]} 10. Nd2 {[%emt 0:03:47] The position is equal.} Bf5 {[%emt 0:01:15]} 11. Bf4 {[%emt 0:04:16]} Bxd3 {[%emt 0:19:39]} 12. Qxd3 {[%emt 0:00:13]} h5 {[%emt 0:00:42]} 13. Nf3 {[%emt 0:06:27]} f6 {[%emt 0:00:45]} 14. O-O-O {[%emt 0:04:41]} Na5 {[%emt 0:05:40]} 15. Bxd6 {[%emt 0:08:17]} Qxd6 {[%emt 0:01:04]} 16. Nh4 {[%emt 0:01:43]} Nc4 {[%emt 0:01:14]} 17. Nf5 {[%emt 0:08:15]} Nxf5 {[%emt 0:00:28]} 18. Qxf5+ {[%emt 0:00:05]} Kb8 {[%emt 0:00:13]} 19. Nf4 {[%emt 0:00:22][%cal Oh1e1]} h4 {[%emt 0:09:19]} 20. Rhe1 {[%emt 0:03:56]} Qa6 {[%emt 0:04:48]} 21. Kb1 {[%emt 0:04:29][%cal Ob2b3,Bc1b1,Bb1a1,Ba1b2][%mdl 32]} (21. Nxd5 $2 {is the wrong capture.} Qxa2 22. Re2 Qa1+ 23. Qb1 Qxb1+ 24. Kxb1 Rxd5 $19) 21... Qb5 {[%emt 0:00:09][%csl Gc4][%cal Rb5b2]} 22. b3 {[%emt 0:00:53]} a5 {[%emt 0:03:59]} 23. Ka1 {[%emt 0:03:21]} Nb6 {[%emt 0:00:21] [#]} (23... Na3 $11 {is superior.}) 24. c4 $1 $14 {[%emt 0:04:44][%cal Bc3c4,Bc4c5][%mdl 32]} Qd7 {[%emt 0:00:57]} 25. Qxd7 {[%emt 0:01:22]} Rxd7 {[%emt 0:00:13]} 26. c5 {[%emt 0:01:25]} Nc8 $1 {[%emt 0:00:06][%cal Bb6c8,Bc8e7,Be7c6][%mdl 32]} 27. Re6 {[%emt 0:03:33]} Ne7 {[%emt 0:01:48]} 28. Kb2 {[%emt 0:02:52]} g5 {[%emt 0:08:03]} 29. Nd3 {[%emt 0:01:45]} Rf8 {[%emt 0:00:09]} 30. f4 {[%emt 0:03:54]} (30. Rde1 $14 Rf7 31. f4) 30... Nc6 $11 {[%emt 0:00:32]} 31. Kc3 {[%emt 0:01:41]} Rg7 {[%emt 0:00:17]} 32. Rde1 {[%emt 0:02:01]} g4 {[%emt 0:00:28]} 33. Re8+ {[%emt 0:04:43]} Rxe8 {[%emt 0:00:18]} 34. Rxe8+ {[%emt 0:00:04][%mdl 4096] Endgame. KRN-KRN} Ka7 {[%emt 0:00:07]} 35. hxg4 {[%emt 0:01:27] White is now going downhill.} (35. a3 $11) 35... Rxg4 $17 {[%emt 0:00:18]} 36. Rh8 {[%emt 0:02:09]} Rxg2 {[%emt 0:00:43]} 37. Rxh4 {[%emt 0:00:06]} Rxa2 {[%emt 0:00:18] Black is more active.} 38. Rh7 {[%emt 0:00:43] [#]} (38. Rh5 $142) 38... Rg2 $1 $19 {[%emt 0:00:20]} 39. b4 {[%emt 0:04:00]} axb4+ {[%emt 0:00:43]} 40. Nxb4 {[%emt 0:00:06]} Nxb4 {[%emt 0:00:29]} 41. Kxb4 {[%emt 0:00:05] [#] KR-KR} c6 {[%emt 0:00:12]} 42. Rh6 $2 {[%emt 0:01:42]} (42. Kc3) 42... Rc2 {[%emt 0:00:14] aiming for ...Rc4+.} 43. Rxf6 {[%emt 0:00:16]} Rc4+ {[%emt 0:00:04]} 44. Kb3 {[%emt 0:00:11]} Rxd4 {[%emt 0:00:04] White must now prevent ...Rc4.} 45. Rf8 $2 {[%emt 0:00:33]} (45. Kc3 Rc4+ 46. Kd3) 45... Ka6 {[%emt 0:01:54] Black is clearly winning.} 46. Rf7 {[%emt 0:01:40]} Rc4 {[%emt 0:04:50]} 47. f5 {[%emt 0:00:30]} Rxc5 {[%emt 0:00:24]} 48. Rd7 {[%emt 0:00:29]} Rc1 {[%emt 0:00:57]} 49. f6 {[%emt 0:00:04]} Rf1 {[%emt 0:00:04]} 50. f7 {[%emt 0:00:04]} b5 {[%emt 0:00:32]} 51. Kc3 {[%emt 0:01:02]} Kb6 {[%emt 0:00:32]} 52. Kd4 {[%emt 0:00:09]} Rf5 {[%emt 0:01:23] Weighted Error Value: White=0.56/Black=0.18 (very precise) .  Mistake:       	White=5     	Black=1      Inaccurate:     	White=2     	Black=1      OK:         	White=12    	Black=17     Best:        	White=1     	Black=5      Strong:       	---       	Black=2} 0-1

[Event "10th Iberoamericano-ch 2024"]
[Site "Linares"]
[Date "2024.09.25"]
[Round "1.13"]
[White "Garrido Outon, Alex"]
[Black "Gomez Carreno, Martin"]
[Result "1-0"]
[ECO "C48"]
[WhiteElo "2448"]
[BlackElo "2124"]
[Annotator "TA"]
[PlyCount "97"]
[EventDate "2024.09.25"]
[EventType "swiss"]
[EventCountry "ESP"]
[SourceTitle "playchess.com"]
[Source "ChessBase"]
[SourceQuality "1"]
[TimeControl "5400+30"]

{[%evp 9,97,0,10,0,8,0,5,-6,10,12,4,0,4,-12,-7,-14,-7,-16,-6,-31,-22,-22,-16,-22,-12,-33,-20,-31,-31,-29,-26,-57,-35,-39,-14,-30,0,0,11,0,14,10,41,29,46,8,16,10,15,12,54,61,52,56,52,72,56,52,62,66,64,64,56,62,142,164,156,158,245,210,398,402,425,402,406,425,411,388,529,518,1153,1131,29979,29971,29976,29977,29989,1318,29983,29984]} 1. e4 {[%emt 0:00:04]} e5 {[%emt 0:00:05]} 2. Nf3 {[%emt 0:00:09]} Nc6 {[%emt 0:00:07]} 3. Nc3 {[%emt 0:00:09]} Nf6 {[%emt 0:00:58]} 4. Bb5 {[%emt 0:00:11]} Nd4 {[%emt 0:02:41]} 5. O-O {[%emt 0:00:09]} c6 {[%emt 0:09:12]} 6. Bd3 {[%emt 0:00:39]} Nxf3+ {[%emt 0:01:04]} 7. Qxf3 {[%emt 0:00:10]} d6 {[%emt 0:03:24]} 8. Be2 {[%emt 0:00:28] The position is equal.} Bg4 {[%emt 0:06:04]} 9. Qe3 {[%emt 0:00:21]} Qb6 {[%emt 0:03:36]} 10. Bxg4 {[%emt 0:07:45] [#] Hoping for Bf3.} Qxe3 {[%emt 0:01:01]} 11. fxe3 {[%emt 0:00:06]} Nxg4 {[%emt 0:00:06]} 12. b3 {[%emt 0:01:49]} Be7 {[%emt 0:04:35]} 13. Bb2 {[%emt 0:00:11]} O-O {[%emt 0:02:43]} 14. Ne2 {[%emt 0:01:40]} Rad8 15. h3 Nf6 {[%emt 0:18:47][%cal Bg4f6,Bf6d7,Bd7c5][%mdl 32]} 16. d3 {[%emt 0:14:40]} Rfe8 {[%emt 0:06:49]} 17. Ng3 {[%emt 0:14:01]} g6 {[%emt 0:07:48]} 18. Rf3 {[%emt 0:01:41]} Nd7 {[%emt 0:04:19]} 19. Raf1 {[%emt 0:03:04]} f6 {[%emt 0:03:57]} 20. c4 {[%emt 0:06:30]} Bf8 {[%emt 0:05:37]} 21. Rd1 {[%emt 0:02:58]} Bg7 {[%emt 0:01:46]} 22. Ne2 {[%emt 0:02:31]} Nc5 {[%emt 0:02:43]} 23. Nc3 {[%emt 0:00:40]} Ne6 {[%emt 0:01:58]} 24. g4 {[%emt 0:04:28]} Nc7 {[%emt 0:01:44]} 25. Kg2 {[%emt 0:10:41]} d5 {[%emt 0:01:01]} 26. exd5 {[%emt 0:05:05]} cxd5 {[%emt 0:00:07]} 27. Rdf1 {[%emt 0:00:05][%cal Bd1f1,Bf1f2,Bf2e2][%mdl 32]} Re6 {[%emt 0:08:26]} 28. R1f2 {[%emt 0:05:02]} e4 {[%emt 0:01:12]} 29. dxe4 {[%emt 0:00:24]} dxe4 {[%emt 0:00:05]} 30. Rf4 {[%emt 0:00:52]} Bh6 {[%emt 0:01:41]} 31. Rxe4 {[%emt 0:00:50][%cal Oc3d5] Nd5! is the strong threat.} Bxe3 {[%emt 0:00:56]} 32. Re2 {[%emt 0:00:16]} Rd3 {[%emt 0:00:44]} 33. Rxe6 {[%emt 0:04:02]} Nxe6 {[%emt 0:00:01]} 34. Nd5 {[%emt 0:00:09]} Nf4+ {[%emt 0:00:06]} 35. Nxf4 {[%emt 0:00:09]} Bxf4 {[%emt 0:00:06]} 36. Bxf6 $14 {[%emt 0:00:14][%mdl 4096] Endgame. Re7 would now be deadly. KRB-KRB} Rg3+ {[%emt 0:00:07] [#]} (36... Kf7 $14 37. Bh4 Bd6) 37. Kf2 $1 $16 {[%emt 0:00:48][%cal Of6g5] aiming for Bg5!} Rxh3 {[%emt 0:02:14]} 38. Re7 {[%emt 0:00:11]} g5 {[%emt 0:00:47]} (38... b6 $16 39. Rxa7 h5 40. Rg7+ Kf8) 39. Rxb7 $18 {[%emt 0:01:07]} Rh2+ $2 {[%emt 0:00:51]} (39... a5 {was necessary.} 40. Ra7 h6) 40. Kf3 {[%emt 0:00:07]} Rxa2 {[%emt 0:00:02]} 41. Rg7+ {[%emt 0:06:00]} Kf8 {[%emt 0:00:01]} 42. Rxh7 {[%emt 0:00:07]} a5 {[%emt 0:00:21]} 43. Ra7 {[%emt 0:01:11]} Rd2 {[%emt 0:00:36]} 44. Ke4 {[%emt 0:02:22] Dodges Rd3} Rg2 {[%emt 0:00:49]} (44... Rd1 $142 45. Rxa5 Kf7 46. Bxg5 Bc1) 45. Kf5 {[%emt 0:00:30][%cal Oc4c5] White wants to mate with c5!} Rg3 {[%emt 0:00:35]} 46. Rb7 {[%emt 0:02:26]} Bd2 {[%emt 0:00:39]} 47. Kg6 {[%emt 0:00:33][%cal Rb7b8]} Bf4 {[%emt 0:00:31]} 48. Bxg5 {[%emt 0:00:25]} (48. c5 $142 Re3 49. c6 (49. Bxg5 Bxg5 50. Kxg5 Ke8 $18) 49... Be5 50. Bxe5 (50. Bxg5 Rc3 $18) 50... Rxe5 51. Kf6 Re8 52. c7 (52. Kxg5 Rc8 $18) 52... Rc8 53. Rb8 (53. Kxg5 Ke7 $18)) 48... Rxg4 {[%emt 0:00:10]} 49. Rf7+ {[%emt 0:00:06] Weighted Error Value: White=0.08 (flawless) /Black=0.57.  Mistake:       	---       	Black=4      Inaccurate:     	White=2     	Black=5      OK:         	White=13    	Black=10     Best:        	White=5     	Black=3      Strong:       	White=1     	---} 1-0

[Event "10th Iberoamericano-ch 2024"]
[Site "Linares"]
[Date "2024.09.25"]
[Round "1.14"]
[White "Maldonado Mena, German"]
[Black "Oro, Faustino"]
[Result "0-1"]
[ECO "D37"]
[WhiteElo "2123"]
[BlackElo "2434"]
[Annotator "TA"]
[PlyCount "38"]
[EventDate "2024.09.25"]
[EventType "swiss"]
[EventCountry "ESP"]
[SourceTitle "playchess.com"]
[Source "ChessBase"]
[SourceQuality "1"]
[TimeControl "5400+30"]

{[%evp 10,38,18,0,0,0,0,0,11,0,0,-23,-12,-42,0,-92,-86,-74,-66,-85,-85,-253,-238,-370,-379,-375,-365,-385,-385,-384,-375]} 1. d4 {[%emt 0:02:08]} d5 {[%emt 0:00:11]} 2. c4 {[%emt 0:00:19]} e6 {[%emt 0:00:05]} 3. Nf3 {[%emt 0:05:47]} Nf6 {[%emt 0:00:33]} 4. Nc3 {[%emt 0:00:06]} dxc4 {[%emt 0:00:31]} 5. e3 {[%emt 0:07:25]} a6 {[%emt 0:00:07]} 6. a4 {[%emt 0:00:55]} b6 {[%emt 0:00:14]} 7. Bxc4 {[%emt 0:00:13]} Bb7 {[%emt 0:00:06]} 8. O-O {[%emt 0:00:42][%cal Oe3e4]} Bb4 {[%emt 0:00:42] The position is equal.} 9. Ne5 {[%emt 0:25:15]} O-O {[%emt 0:02:50]} 10. f3 {[%emt 0:00:34]} Bd6 {[%emt 0:08:25]} 11. Nd3 {[%emt 0:03:36]} Nc6 {[%emt 0:04:43]} 12. e4 {[%emt 0:06:09] [#]} (12. b3 $11 {keeps the balance.}) 12... Be7 $1 $17 {[%emt 0:00:15][%cal Bd6e7,Be7b4,Bb4c3][%mdl 32]} (12... Nxd4 13. e5 $16) 13. d5 {[%emt 0:10:56]} Na5 {[%emt 0:00:33][%csl LRc4,LRd5]} 14. Ba2 {[%emt 0:00:08]} exd5 {[%emt 0:00:07]} 15. b4 $2 {[%emt 0:00:28] Now White is beyond hope.} (15. e5 $17 Ne8 16. b4) 15... dxe4 $19 {[%emt 0:00:20]} 16. Ne5 {[%emt 0:06:26]} (16. Nf2 $142 Nc6 (16... Bxb4 17. Nfxe4 Nxe4 18. Nxe4 $17) 17. Nfxe4) 16... Bxb4 {[%emt 0:00:33] Black is winning.} 17. Qxd8 {[%emt 0:00:32]} Raxd8 {[%emt 0:00:01]} (17... Rfxd8 18. Nxe4 Bd5 19. Nxf6+ gxf6 20. Ng4 Bc5+ 21. Be3 Bxe3+ 22. Nxe3 $17) 18. Nxe4 {[%emt 0:00:19]} Bxe4 {[%emt 0:00:06]} 19. fxe4 {[%emt 0:01:19]} Bc3 {[%emt 0:00:11] Weighted Error Value: White=0.47/Black=0.05 (flawless) .  Loses game:     	White=1     	---        Mistake:       	White=2     	---        Inaccurate:     	White=1     	Black=1      OK:         	White=3     	Black=5      Best:        	---       	Black=1      Strong:       	---       	Black=1} ({Not} 19... Nxe4 20. Be3 Nf6 21. Rfd1 $19) 0-1